Workbook

Sheet Лист1
A1: Школа | C1: МАОУ СОШ №17 г.Альметьевска РТ | F1: Утвердил: | G1: должность | H1: зав.столовой
A2: Типовое примерное меню приготавливаемых блюд | G2: фамилия | H2: Смирнова Л.В.
A3: Возрастная категория | E3: 7-11 лет | G3: дата | H3: 2 | I3: 3 | J3: 2025
H4: день | I4: месяц | J4: год
A5: Неделя | B5: День недели | C5: Прием пищи | D5: Раздел меню | E5: Блюда | F5: Вес блюда, г | G5: Белки | H5: Жиры | I5: Углеводы | J5: Калорийность | K5: № рецептуры | L5: Цена
A6: 1 | B6: 1 | C6: Завтрак | D6: фрукты | E6: Плоды и ягоды свежие (яблоки) | F6: 100 | G6: 0.40 | H6: 0.40 | I6: 9.80 | J6: 47.00
D7: гор.блюдо | E7: Сырники из творога с кашей молочной "Дружба" с маслом сливочным | F7: 215 | G7: 13.65 | H7: 15.29 | I7: 32.32 | J7: 330.90 | K7: ТТК | L7: 69.43
D8: гор.напиток | E8: Чай с сахаром | F8: 200 | G8: 0.07 | H8: 0.02 | I8: 10.01 | J8: 40.00 | K8: 376
D9: хлеб | E9: Хлеб пшеничный (батон) | F9: 25 | G9: 1.88 | H9: 0.73 | I9: 12.85 | J9: 65.50
D11: итого | F11: =SUM(F6:F10) -> 540 | G11: =SUM(G6:G10) -> 15.995 | H11: =SUM(H6:H10) -> 16.439 | I11: =SUM(I6:I10) -> 64.983 | J11: =SUM(J6:J10) -> 483.4 | L11: =SUM(L6:L10) -> 69.43
A12: =A6 -> 1 | B12: =B6 -> 1 | C12: Обед | D12: закуска
D13: 1 блюдо
D14: 2 блюдо
D15: гарнир
D16: напиток
D17: хлеб бел.
D18: хлеб черн.
D21: итого | F21: =SUM(F12:F20) -> 0 | G21: =SUM(G12:G20) -> 0 | H21: =SUM(H12:H20) -> 0 | I21: =SUM(I12:I20) -> 0 | J21: =SUM(J12:J20) -> 0 | L21: =SUM(L12:L20) -> 0
A22: =A6 -> 1 | B22: =B6 -> 1 | C22: Итого за день: | F22: =F11+F21 -> 540 | G22: =G11+G21 -> 15.995 | H22: =H11+H21 -> 16.439 | I22: =I11+I21 -> 64.983 | J22: =J11+J21 -> 483.4 | L22: =L11+L21 -> 69.43
A23: 1 | B23: 2 | C23: Завтрак | D23: гор.блюдо | E23: Тефтели мясные запеченные в сметанно-томатном соусе | F23: 100 | G23: 9.08 | H23: 14.44 | I23: 10.87 | J23: 209.88 | K23: № 279, 331
D24: гор.блюдо | E24: Макаронные изделия отварные с маслом сливочным | F24: 153 | G24: 5.10 | H24: 4.53 | I24: 31.99 | J24: 189.30 | K24: № 203 | L24: 69.43
D25: гор.напиток | E25: Чай с сахаром, с лимоном | F25: 200 | G25: 0.11 | H25: 0.02 | I25: 10.15 | J25: 41.32 | K25: № 377
D26: хлеб | E26: Хлеб пшеничный | F26: 30 | G26: 2.28 | H26: 0.24 | I26: 14.76 | J26: 70.50
D27: хлеб | E27: Хлеб ржаной | F27: 30 | G27: 1.98 | H27: 0.36 | I27: 11.88 | J27: 59.40
D28: итого | F28: =SUM(F23:F27) -> 513 | G28: =SUM(G23:G27) -> 18.55620396 | H28: =SUM(H23:H27) -> 19.58390376 | I28: =SUM(I23:I27) -> 79.64939221 | J28: =SUM(J23:J27) -> 570.3953329 | L28: =SUM(L23:L27) -> 69.43
A29: =A23 -> 1 | B29: =B23 -> 2 | C29: Обед | D29: закуска
D30: 1 блюдо
D31: 2 блюдо
D32: гарнир
D33: напиток
D34: хлеб бел.
D35: хлеб черн.
D38: итого | F38: =SUM(F29:F37) -> 0 | G38: =SUM(G29:G37) -> 0 | H38: =SUM(H29:H37) -> 0 | I38: =SUM(I29:I37) -> 0 | J38: =SUM(J29:J37) -> 0 | L38: =SUM(L29:L37) -> 0
A39: =A23 -> 1 | B39: =B23 -> 2 | C39: Итого за день: | F39: =F28+F38 -> 513 | G39: =G28+G38 -> 18.55620396 | H39: =H28+H38 -> 19.58390376 | I39: =I28+I38 -> 79.64939221 | J39: =J28+J38 -> 570.3953329 | L39: =L28+L38 -> 69.43
A40: 1 | B40: 3 | C40: Завтрак | D40: гор.блюдо | E40: Фрикассе из куриной грудки | F40: 100 | G40: 7.25 | H40: 7.80 | I40: 4.10 | J40: 141.62 | K40: ТТК | L40: 69.43
D41: гор.блюдо | E41: Пюре картофельное с маслом сливочным,капуста тушеная (доп.гарнир) | F41: 203 | G41: =3.0765+1.02 -> 4.10 | H41: =1.84+6.2535 -> 8.09 | I41: =3.95+20.467 -> 24.42 | J41: =38.5+150.45 -> 188.95 | K41: № 312, 321
D42: гор.напиток | E42: Чай с сахаром, с яблоком | F42: 200 | G42: 0.11 | H42: 0.06 | I42: 10.98 | J42: 44.70 | K42: №376
D43: хлеб | E43: Хлеб пшеничный | F43: 25 | G43: 1.90 | H43: 0.20 | I43: 12.30 | J43: 58.75
D44: хлеб | E44: Хлеб ржаной | F44: 30 | G44: 1.98 | H44: 0.36 | I44: 11.88 | J44: 59.40
D46: итого | F46: =SUM(F40:F45) -> 558 | G46: =SUM(G40:G45) -> 15.3375 | H46: =SUM(H40:H45) -> 16.5135 | I46: =SUM(I40:I45) -> 63.6722381 | J46: =SUM(J40:J45) -> 493.4190476 | L46: =SUM(L40:L45) -> 69.43
A47: =A40 -> 1 | B47: =B40 -> 3 | C47: Обед | D47: закуска
D48: 1 блюдо
D49: 2 блюдо
D50: гарнир
D51: напиток
D52: хлеб бел.
D53: хлеб черн.
D56: итого | F56: =SUM(F47:F55) -> 0 | G56: =SUM(G47:G55) -> 0 | H56: =SUM(H47:H55) -> 0 | I56: =SUM(I47:I55) -> 0 | J56: =SUM(J47:J55) -> 0 | L56: =SUM(L47:L55) -> 0
A57: =A40 -> 1 | B57: =B40 -> 3 | C57: Итого за день: | F57: =F46+F56 -> 558 | G57: =G46+G56 -> 15.3375 | H57: =H46+H56 -> 16.5135 | I57: =I46+I56 -> 63.6722381 | J57: =J46+J56 -> 493.4190476 | L57: =L46+L56 -> 69.43
A58: 1 | B58: 4 | C58: Завтрак | D58: фрукты | E58: Плоды и ягоды свежие (яблоки) | F58: 100 | G58: 0.40 | H58: 0.40 | I58: 9.80 | J58: 47.00 | L58: 69.43
D59: гор.блюдо | E59: Котлета домашняя из говядины с кашей гречневой рассыпчатой с маслом сливочным | F59: 228 | G59: 14.55 | H59: 17.06 | I59: 47.34 | J59: 400.39 | K59: ТТК
D60: гор.напиток | E60: Кофейный напиток с молоком | F60: 200 | G60: 3.17 | H60: 2.68 | I60: 15.95 | J60: 100.60 | K60: №379
D61: хлеб | E61: Хлеб ржаной | F61: 30 | G61: 1.98 | H61: 0.36 | I61: 11.88 | J61: 59.40
D64: итого | F64: =SUM(F58:F62) -> 558 | G64: =SUM(G58:G62) -> 20.096 | H64: =SUM(H58:H62) -> 20.50234146 | I64: =SUM(I58:I62) -> 84.96117073 | J64: =SUM(J58:J62) -> 607.3853659 | L64: =SUM(L58:L63) -> 69.43
A65: =A58 -> 1 | B65: =B58 -> 4 | C65: Обед | D65: закуска
D66: 1 блюдо
D67: 2 блюдо
D68: гарнир
D69: напиток
D70: хлеб бел.
D71: хлеб черн.
D74: итого | F74: =SUM(F65:F73) -> 0 | G74: =SUM(G65:G73) -> 0 | H74: =SUM(H65:H73) -> 0 | I74: =SUM(I65:I73) -> 0 | J74: =SUM(J65:J73) -> 0 | L74: =SUM(L65:L73) -> 0
A75: =A58 -> 1 | B75: =B58 -> 4 | C75: Итого за день: | F75: =F64+F74 -> 558 | G75: =G64+G74 -> 20.096 | H75: =H64+H74 -> 20.50234146 | I75: =I64+I74 -> 84.96117073 | J75: =J64+J74 -> 607.3853659 | L75: =L64+L74 -> 69.43
A76: 1 | B76: 5 | C76: Завтрак | D76: гор.блюдо | E76: Жаркое по-домашнему с овощами, с индейкой, свекла отварная дольками | F76: 260 | G76: =1.08+14.95 -> 16.03 | H76: =0.06+19.64 -> 19.70 | I76: =5.88+40.4557142857143 -> 46.34 | J76: =28.8+349.857142857143 -> 378.66 | K76: ТТК | L76: 69.43
D77: гор.напиток | E77: Компот из сухофруктов (75С) | F77: 200 | G77: 0.66 | H77: 0.09 | I77: 12.03 | J77: 92.90 | K77: №349
D78: хлеб | E78: Хлеб пшеничный | F78: 20 | G78: 1.52 | H78: 0.16 | I78: 9.84 | J78: 47.00
D79: хлеб | E79: Хлеб ржаной | F79: 30 | G79: 1.98 | H79: 0.36 | I79: 11.88 | J79: 59.40
D81: итого | F81: =SUM(F76:F79) -> 510 | G81: =SUM(G76:G79) -> 20.192 | H81: =SUM(H76:H79) -> 20.31 | I81: =SUM(I76:I79) -> 80.08571429 | J81: =SUM(J76:J79) -> 577.9571429 | L81: =SUM(L76:L80) -> 69.43
A82: =A76 -> 1 | B82: =B76 -> 5 | C82: Обед | D82: закуска
D83: 1 блюдо
D84: 2 блюдо
D85: гарнир
D86: напиток
D87: хлеб бел.
D88: хлеб черн.
D91: итого | F91: =SUM(F82:F90) -> 0 | G91: =SUM(G82:G90) -> 0 | H91: =SUM(H82:H90) -> 0 | I91: =SUM(I82:I90) -> 0 | J91: =SUM(J82:J90) -> 0 | L91: =SUM(L82:L90) -> 0
A92: =A76 -> 1 | B92: =B76 -> 5 | C92: Итого за день: | F92: =F81+F91 -> 510 | G92: =G81+G91 -> 20.192 | H92: =H81+H91 -> 20.31 | I92: =I81+I91 -> 80.08571429 | J92: =J81+J91 -> 577.9571429 | L92: =L81+L91 -> 69.43
A93: 2 | B93: 1 | C93: Завтрак | D93: гор.блюдо | E93: Котлета из мяса птицы с кашей гречневой рассыпчатой, с маслом сливочным, сыр порционно | F93: 238 | G93: =2.63+11.97 -> 14.60 | H93: =2.66+17.05 -> 19.71 | I93: 41.36 | J93: =34.33+324.8 -> 359.13 | K93: ТТК, №15 | L93: 69.43
D94: гор.напиток | E94: Компот из сухофруктов (75С) | F94: 200 | G94: 0.66 | H94: 0.09 | I94: 12.03 | J94: 92.90 | K94: 349
D95: хлеб | E95: Хлеб пшеничный | F95: 25 | G95: 1.90 | H95: 0.20 | I95: 12.30 | J95: 58.75
D96: хлеб | E96: Хлеб ржаной | F96: 40 | G96: 3.04 | H96: 0.32 | I96: 19.68 | J96: 94.00
D98: итого | F98: =SUM(F93:F96) -> 503 | G98: =SUM(G93:G96) -> 20.202 | H98: =SUM(H93:H96) -> 20.32 | I98: =SUM(I93:I96) -> 85.367 | J98: =SUM(J93:J96) -> 604.78 | L98: =SUM(L93:L97) -> 69.43
A99: =A93 -> 2 | B99: =B93 -> 1 | C99: Обед | D99: закуска
D100: 1 блюдо
D101: 2 блюдо
D102: гарнир
D103: напиток
D104: хлеб бел.
D105: хлеб черн.
D108: итого | F108: =SUM(F99:F107) -> 0 | G108: =SUM(G99:G107) -> 0 | H108: =SUM(H99:H107) -> 0 | I108: =SUM(I99:I107) -> 0 | J108: =SUM(J99:J107) -> 0 | L108: =SUM(L99:L107) -> 0
A109: =A93 -> 2 | B109: =B93 -> 1 | C109: Итого за день: | F109: =F98+F108 -> 503 | G109: =G98+G108 -> 20.202 | H109: =H98+H108 -> 20.32 | I109: =I98+I108 -> 85.367 | J109: =J98+J108 -> 604.78 | L109: =L98+L108 -> 69.43
A110: 2 | B110: 2 | C110: Завтрак | D110: гор.блюдо | E110: Биточки рыбные со сметанным соусом, салат из отварной свеклы | F110: 155 | G110: =0.84+8.46 -> 9.30 | H110: =3.61+6.8192 -> 10.43 | I110: =4.96+12.1834 -> 17.14 | J110: =55.68+148.32 -> 204.00 | K110: №234, №52
D111: гор.блюдо | E111: Пюре картофельное | F111: 150 | G111: 3.20 | H111: 4.17 | I111: 18.78 | J111: 132.00 | K111: №312 | L111: 69.43
D112: гор.напиток | E112: Чай с сахаром | F112: 200 | G112: 0.07 | H112: 0.02 | I112: 10.01 | J112: 40.00 | K112: №376
D113: хлеб | E113: Хлеб пшеничный | F113: 20 | G113: 1.52 | H113: 0.16 | I113: 9.84 | J113: 47.00
D114: хлеб | E114: Хлеб ржаной | F114: 30 | G114: 1.98 | H114: 0.36 | I114: 11.88 | J114: 59.40
D116: итого | F116: =SUM(F110:F114) -> 555 | G116: =SUM(G110:G114) -> 16.065 | H116: =SUM(H110:H114) -> 15.1392 | I116: =SUM(I110:I114) -> 67.6534 | J116: =SUM(J110:J114) -> 482.4 | L116: =SUM(L110:L115) -> 69.43
A117: =A110 -> 2 | B117: =B110 -> 2 | C117: Обед | D117: закуска
D118: 1 блюдо
D119: 2 блюдо
D120: гарнир
D121: напиток
D122: хлеб бел.
D123: хлеб черн.
D126: итого | F126: =SUM(F117:F125) -> 0 | G126: =SUM(G117:G125) -> 0 | H126: =SUM(H117:H125) -> 0 | I126: =SUM(I117:I125) -> 0 | J126: =SUM(J117:J125) -> 0 | L126: =SUM(L117:L125) -> 0
A127: =A110 -> 2 | B127: =B110 -> 2 | C127: Итого за день: | F127: =F116+F126 -> 555 | G127: =G116+G126 -> 16.065 | H127: =H116+H126 -> 15.1392 | I127: =I116+I126 -> 67.6534 | J127: =J116+J126 -> 482.4 | L127: =L116+L126 -> 69.43
A128: 2 | B128: 3 | C128: Завтрак | D128: фрукты | E128: Плоды и ягоды свежие (яблоки) | F128: 100 | G128: 0.40 | H128: 0.40 | I128: 9.80 | J128: 47.00 | L128: 69.43
D129: гор.блюдо | E129: Плов из куриной грудки с рисовой крупой | F129: 200 | G129: 16.34 | H129: 18.47 | I129: 39.55 | J129: 378.25 | K129: №265
D130: гор.напиток | E130: Чай с сахаром, с лимоном | F130: 200 | G130: 0.11 | H130: 0.02 | I130: 10.15 | J130: 41.32 | K130: №377
D131: хлеб | E131: Хлеб пшеничный | F131: 25 | G131: 1.90 | H131: 0.20 | I131: 12.30 | J131: 58.75
D132: хлеб | E132: Хлеб ржаной | F132: 20 | G132: 1.32 | H132: 0.24 | I132: 7.92 | J132: 39.60
D134: итого | F134: =SUM(F128:F133) -> 545 | G134: =SUM(G128:G133) -> 20.072 | H134: =SUM(H128:H133) -> 19.328 | I134: =SUM(I128:I133) -> 79.72 | J134: =SUM(J128:J133) -> 564.92 | L134: =SUM(L128:L133) -> 69.43
A135: =A128 -> 2 | B135: =B128 -> 3 | C135: Обед | D135: закуска
D136: 1 блюдо
D137: 2 блюдо
D138: гарнир
D139: напиток
D140: хлеб бел.
D141: хлеб черн.
D144: итого | F144: =SUM(F135:F143) -> 0 | G144: =SUM(G135:G143) -> 0 | H144: =SUM(H135:H143) -> 0 | I144: =SUM(I135:I143) -> 0 | J144: =SUM(J135:J143) -> 0 | L144: =SUM(L135:L143) -> 0
A145: =A128 -> 2 | B145: =B128 -> 3 | C145: Итого за день: | F145: =F134+F144 -> 545 | G145: =G134+G144 -> 20.072 | H145: =H134+H144 -> 19.328 | I145: =I134+I144 -> 79.72 | J145: =J134+J144 -> 564.92 | L145: =L134+L144 -> 69.43
A146: 2 | B146: 4 | C146: Завтрак | D146: гор.блюдо | E146: Тефтели мясные в томатном соусе, сыр порционно | F146: 115 | G146: =3.95+7.0438 -> 10.99 | H146: =3.99+7.4732 -> 11.46 | I146: 15.96 | J146: =51.5+161.75 -> 213.25 | K146: №15, №279 | L146: 69.43
D147: гор.блюдо | E147: Макаронные изделия отварные с маслом сливочным | F147: 183 | G147: 6.56 | H147: 7.60 | I147: 39.78 | J147: 221.94 | K147: №203
D148: напиток | E148: Компот из сухофруктов (75С) | F148: 200 | G148: 0.66 | H148: 0.09 | I148: 12.03 | J148: 92.90 | K148: №349
D149: хлеб | E149: Хлеб пшеничный (батон) | F149: 25 | G149: 1.88 | H149: 0.73 | I149: 12.85 | J149: 65.50
D152: итого | F152: =SUM(F146:F151) -> 523 | G152: =SUM(G146:G151) -> 20.0908 | H152: =SUM(H146:H151) -> 19.8742 | I152: =SUM(I146:I151) -> 80.616 | J152: =SUM(J146:J151) -> 593.59 | L152: =SUM(L146:L151) -> 69.43
A153: =A146 -> 2 | B153: =B146 -> 4 | C153: Обед | D153: закуска
D154: 1 блюдо
D155: 2 блюдо
D156: гарнир
D157: напиток
D158: хлеб бел.
D159: хлеб черн.
D162: итого | F162: =SUM(F153:F161) -> 0 | G162: =SUM(G153:G161) -> 0 | H162: =SUM(H153:H161) -> 0 | I162: =SUM(I153:I161) -> 0 | J162: =SUM(J153:J161) -> 0 | L162: =SUM(L153:L161) -> 0
A163: =A146 -> 2 | B163: =B146 -> 4 | C163: Итого за день: | F163: =F152+F162 -> 523 | G163: =G152+G162 -> 20.0908 | H163: =H152+H162 -> 19.8742 | I163: =I152+I162 -> 80.616 | J163: =J152+J162 -> 593.59 | L163: =L152+L162 -> 69.43
A164: 2 | B164: 5 | C164: Завтрак | D164: гор.блюдо | E164: Птица запеченная | F164: 100 | G164: 10.28 | H164: 17.32 | I164: 0.06 | J164: 208.00 | K164: №293
D165: гор.блюдо | E165: Гороховое пюре | F165: 180 | G165: 6.21 | H165: 1.69 | I165: 41.90 | J165: 216.60 | K165: №199 | L165: 69.43
D166: гор.напиток | E166: Компот из свежих яблок (75С) | F166: 200 | G166: 0.16 | H166: 0.16 | I166: 17.90 | J166: 74.60 | K166: №342
D167: хлеб | E167: Хлеб пшеничный | F167: 20 | G167: 1.52 | H167: 0.16 | I167: 9.84 | J167: 47.00
D168: хлеб | E168: Хлеб ржаной | F168: 30 | G168: 1.98 | H168: 0.36 | I168: 11.88 | J168: 59.40
D170: итого | F170: =SUM(F164:F169) -> 530 | G170: =SUM(G164:G169) -> 20.15 | H170: =SUM(H164:H169) -> 19.692 | I170: =SUM(I164:I169) -> 81.584 | J170: =SUM(J164:J169) -> 605.6 | L170: =SUM(L164:L169) -> 69.43
A171: =A164 -> 2 | B171: =B164 -> 5 | C171: Обед | D171: закуска
D172: 1 блюдо
D173: 2 блюдо
D174: гарнир
D175: напиток
D176: хлеб бел.
D177: хлеб черн.
D180: итого | F180: =SUM(F171:F179) -> 0 | G180: =SUM(G171:G179) -> 0 | H180: =SUM(H171:H179) -> 0 | I180: =SUM(I171:I179) -> 0 | J180: =SUM(J171:J179) -> 0 | L180: =SUM(L171:L179) -> 0
A181: =A164 -> 2 | B181: =B164 -> 5 | C181: Итого за день: | F181: =F170+F180 -> 530 | G181: =G170+G180 -> 20.15 | H181: =H170+H180 -> 19.692 | I181: =I170+I180 -> 81.584 | J181: =J170+J180 -> 605.6 | L181: =L170+L180 -> 69.43
C182: Среднее значение за период: | F182: =(F22+F39+F57+F75+F92+F109+F127+F145+F163+F181)/(IF(F22=0,0,1)+IF(F39=0,0,1)+IF(F57=0,0,1)+IF(F75=0,0,1)+IF(F92=0,0,1)+IF(F109=0,0,1)+IF(F127=0,0,1)+IF(F145=0,0,1)+IF(F163=0,0,1)+IF(F181=0,0,1)) -> 533.5 | G182: =(G22+G39+G57+G75+G92+G109+G127+G145+G163+G181)/(IF(G22=0,0,1)+IF(G39=0,0,1)+IF(G57=0,0,1)+IF(G75=0,0,1)+IF(G92=0,0,1)+IF(G109=0,0,1)+IF(G127=0,0,1)+IF(G145=0,0,1)+IF(G163=0,0,1)+IF(G181=0,0,1)) -> 18.6756504 | H182: =(H22+H39+H57+H75+H92+H109+H127+H145+H163+H181)/(IF(H22=0,0,1)+IF(H39=0,0,1)+IF(H57=0,0,1)+IF(H75=0,0,1)+IF(H92=0,0,1)+IF(H109=0,0,1)+IF(H127=0,0,1)+IF(H145=0,0,1)+IF(H163=0,0,1)+IF(H181=0,0,1)) -> 18.77021452 | I182: =(I22+I39+I57+I75+I92+I109+I127+I145+I163+I181)/(IF(I22=0,0,1)+IF(I39=0,0,1)+IF(I57=0,0,1)+IF(I75=0,0,1)+IF(I92=0,0,1)+IF(I109=0,0,1)+IF(I127=0,0,1)+IF(I145=0,0,1)+IF(I163=0,0,1)+IF(I181=0,0,1)) -> 76.82919153 | J182: =(J22+J39+J57+J75+J92+J109+J127+J145+J163+J181)/(IF(J22=0,0,1)+IF(J39=0,0,1)+IF(J57=0,0,1)+IF(J75=0,0,1)+IF(J92=0,0,1)+IF(J109=0,0,1)+IF(J127=0,0,1)+IF(J145=0,0,1)+IF(J163=0,0,1)+IF(J181=0,0,1)) -> 558.3846889 | L182: =(L22+L39+L57+L75+L92+L109+L127+L145+L163+L181)/(IF(L22=0,0,1)+IF(L39=0,0,1)+IF(L57=0,0,1)+IF(L75=0,0,1)+IF(L92=0,0,1)+IF(L109=0,0,1)+IF(L127=0,0,1)+IF(L145=0,0,1)+IF(L163=0,0,1)+IF(L181=0,0,1)) -> 69.43
